[Event "NJSK 2026 Jeugd A"]
[Site "Helmond, Netherlands"]
[Date "2026.04.27"]
[Round "3.7"]
[White "Kshirsagar, Pranav"]
[Black "Ten Kate, Gustav"]
[Result "1-0"]
[TimeControl "90min/40moves + 30min + 30sec/move"]
[WhiteTitle "-"]
[BlackTitle "-"]
[WhiteFideId "1084011"]
[BlackFideId "1095781"]
[WhiteElo "2148"]
[BlackElo "1972"]

1. d4 {[%clk 01:30:58]} {[%emt 00:00:02]} Nf6 {[%clk 01:30:56]} {[%emt
00:00:04]} 2. c4 {[%clk 01:31:25]} {[%emt 00:00:04]} e6 {[%clk 01:31:23]}
{[%emt 00:00:03]} 3. Nf3 {[%clk 01:31:49]} {[%emt 00:00:06]} b6 {[%clk
01:31:48]} {[%emt 00:00:05]} 4. g3 {[%clk 01:32:10]} {[%emt 00:00:08]} Ba6
{[%clk 01:32:11]} {[%emt 00:00:07]} 5. b3 {[%clk 01:32:35]} {[%emt 00:00:05]}
Bb4+ {[%clk 01:32:36]} {[%emt 00:00:05]} 6. Bd2 {[%clk 01:32:57]} {[%emt
00:00:09]} Be7 {[%clk 01:33:00]} {[%emt 00:00:05]} 7. Bg2 {[%clk 01:33:21]}
{[%emt 00:00:06]} d5 {[%clk 01:33:26]} {[%emt 00:00:05]} 8. Nc3 {[%clk
01:27:26]} {[%emt 00:06:24]} O-O {[%clk 01:33:01]} {[%emt 00:00:56]} 9. cxd5
{[%clk 01:25:34]} {[%emt 00:02:22]} exd5 {[%clk 01:33:24]} {[%emt 00:00:06]} 10.
O-O {[%clk 01:25:10]} {[%emt 00:00:53]} Re8 {[%clk 01:33:51]} {[%emt 00:00:04]}
11. a3 {[%clk 01:19:12]} {[%emt 00:06:28]} Nbd7 {[%clk 01:28:16]} {[%emt
00:06:05]} 12. b4 {[%clk 01:18:44]} {[%emt 00:00:57]} Bb7 {[%clk 01:28:15]}
{[%emt 00:00:32]} 13. Bf4 {[%clk 01:08:26]} {[%emt 00:10:47]} a6 {[%clk
01:23:46]} {[%emt 00:05:00]} 14. Qb3 {[%clk 01:03:46]} {[%emt 00:05:09]} Nf8
{[%clk 01:23:03]} {[%emt 00:01:13]} 15. Rac1 {[%clk 00:58:47]} {[%emt
00:05:30]} Ne6 {[%clk 01:22:11]} {[%emt 00:01:21]} 16. Rfd1 {[%clk 00:53:17]}
{[%emt 00:06:00]} Rc8 {[%clk 01:04:04]} {[%emt 00:18:38]} 17. Ne5 {[%clk
00:49:48]} {[%emt 00:03:59]} Bf8 {[%clk 00:42:54]} {[%emt 00:21:40]} 18. a4
{[%clk 00:37:57]} {[%emt 00:12:21]} Ne4 {[%clk 00:32:48]} {[%emt 00:10:35]} 19.
Bh3 {[%clk 00:30:51]} {[%emt 00:07:38]} Nxc3 {[%clk 00:13:45]} {[%emt
00:19:33]} 20. Rxc3 {[%clk 00:28:10]} {[%emt 00:03:11]} Bd6 {[%clk 00:13:07]}
{[%emt 00:01:08]} 21. Rf3 {[%clk 00:24:01]} {[%emt 00:04:38]} f6 {[%clk
00:12:04]} {[%emt 00:01:33]} 22. Ng4 {[%clk 00:21:28]} {[%emt 00:03:03]} Nxf4
{[%clk 00:12:11]} {[%emt 00:00:24]} 23. gxf4 {[%clk 00:21:43]} {[%emt
00:00:14]} Rb8 {[%clk 00:11:30]} {[%emt 00:01:11]} 24. Ne3 {[%emt 00:03:41]}
Bf8 {[%clk 00:11:52]} 25. Rg3 {[%clk 00:11:53]} {[%emt 00:07:17]} Kh8 {[%clk
00:12:12]} {[%emt 00:00:10]} 26. Kh1 {[%clk 00:10:51]} {[%emt 00:01:33]} Qd6
{[%clk 00:11:14]} {[%emt 00:01:27]} 27. Rdg1 {[%clk 00:10:50]} {[%emt
00:00:27]} g6 {[%clk 00:03:33]} {[%emt 00:08:14]} 28. Bf5 {[%clk 00:08:05]}
{[%emt 00:03:15]} Bh6 {[%clk 00:01:57]} {[%emt 00:02:06]} 29. Bxg6 {[%clk
00:06:46]} {[%emt 00:01:49]} Rxe3 {[%clk 00:01:44]} {[%emt 00:00:42]} 30. fxe3
{[%clk 00:05:09]} {[%emt 00:02:07]} hxg6 {[%clk 00:02:10]} {[%emt 00:00:04]} 31.
Rxg6 {[%clk 00:05:20]} {[%emt 00:00:19]} Qf8 {[%clk 00:02:28]} {[%emt
00:00:43]} 32. Qc2 {[%clk 00:02:32]} {[%emt 00:03:47]} Bc8 {[%clk 00:01:32]}
{[%emt 00:01:26]} 33. Qxc7 {[%clk 00:02:35]} {[%emt 00:00:27]} Ra8 {[%clk
00:01:03]} {[%emt 00:00:59]} 34. Rxh6+ {[%clk 00:02:23]} {[%emt 00:00:42]} Qxh6
{[%clk 00:01:16]} {[%emt 00:00:17]} 35. Qd8+ {[%clk 00:02:52]} 1-0

[Event "NJSK 2026 Jeugd A"]
[Site "Helmond, Netherlands"]
[Date "2026.04.27"]
[Round "3.8"]
[White "Heus, Daan"]
[Black "Fallaux, Storm"]
[Result "1-0"]
[TimeControl "90min/40moves + 30min + 30sec/move"]
[WhiteTitle "-"]
[BlackTitle "-"]
[WhiteFideId "40103757"]
[BlackFideId "1073095"]
[WhiteElo "2049"]
[BlackElo "2034"]

1. d4 {[%clk 01:30:53]} {[%emt 00:00:06]} d5 {[%clk 01:30:50]} {[%emt
00:00:10]} 2. c4 {[%clk 01:31:18]} {[%emt 00:00:05]} dxc4 {[%clk 01:31:15]}
{[%emt 00:00:05]} 3. Nf3 {[%clk 01:31:30]} {[%emt 00:00:18]} Nf6 {[%clk
01:31:38]} {[%emt 00:00:07]} 4. Nc3 {[%clk 01:31:29]} {[%emt 00:00:30]} c5
{[%clk 01:31:58]} {[%emt 00:00:11]} 5. d5 {[%clk 01:27:49]} {[%emt 00:04:09]}
e6 {[%clk 01:32:08]} {[%emt 00:00:21]} 6. e4 {[%clk 01:26:54]} {[%emt
00:01:25]} b5 {[%clk 01:25:23]} {[%emt 00:07:16]} 7. Nxb5 {[%clk 01:25:23]}
{[%emt 00:02:00]} Qa5+ {[%clk 01:25:21]} {[%emt 00:00:31]} 8. Nc3 {[%clk
01:25:40]} {[%emt 00:00:13]} Nxe4 {[%clk 01:25:36]} {[%emt 00:00:16]} 9. Bd2
{[%clk 01:11:24]} {[%emt 00:14:46]} Nd6 {[%clk 01:05:23]} {[%emt 00:20:43]} 10.
Ne5 {[%clk 01:03:16]} {[%emt 00:08:38]} Qb6 {[%clk 00:42:56]} {[%emt 00:23:17]}
11. Nxc4 {[%clk 00:57:09]} {[%emt 00:06:18]} Nxc4 {[%clk 00:42:55]} {[%emt
00:00:32]} 12. Bxc4 {[%clk 00:56:29]} {[%emt 00:01:10]} e5 {[%clk 00:42:10]}
{[%emt 00:01:15]} 13. Qh5 {[%clk 00:49:49]} {[%emt 00:07:08]} Bd6 {[%clk
00:40:06]} {[%emt 00:02:35]} 14. O-O {[%clk 00:47:31]} {[%emt 00:02:49]} O-O
{[%clk 00:38:24]} {[%emt 00:02:11]} 15. Ne4 {[%clk 00:37:13]} {[%emt 00:10:49]}
Nd7 {[%clk 00:34:40]} {[%emt 00:04:13]} 16. f4 {[%clk 00:31:05]} {[%emt
00:06:39]} f5 {[%clk 00:27:14]} {[%emt 00:07:55]} 17. Bc3 {[%clk 00:21:55]}
{[%emt 00:09:41]} g6 {[%clk 00:17:50]} {[%emt 00:09:55]} 18. Qg5 {[%clk
00:21:02]} {[%emt 00:01:22]} Bb7 {[%clk 00:13:46]} {[%emt 00:04:34]} 19. Nxd6
{[%clk 00:11:28]} {[%emt 00:10:04]} Qxd6 {[%clk 00:14:14]} {[%emt 00:00:02]} 20.
Rad1 {[%clk 00:09:30]} {[%emt 00:02:28]} Rae8 {[%clk 00:11:40]} {[%emt
00:03:03]} 21. fxe5 {[%clk 00:08:20]} {[%emt 00:01:41]} Nxe5 {[%clk 00:11:58]}
{[%emt 00:00:12]} 22. Bb5 {[%clk 00:08:07]} {[%emt 00:00:44]} Nf7 {[%clk
00:09:35]} {[%emt 00:02:53]} 23. Qd2 {[%clk 00:08:21]} {[%emt 00:00:16]} Re4
{[%clk 00:08:34]} {[%emt 00:01:30]} 24. Rfe1 {[%clk 00:07:12]} {[%emt
00:01:39]} Qe7 {[%clk 00:08:18]} {[%emt 00:00:46]} 25. Bd3 {[%clk 00:07:01]}
{[%emt 00:00:41]} Rxe1+ {[%clk 00:08:17]} {[%emt 00:00:31]} 26. Rxe1 {[%clk
00:07:30]} {[%emt 00:00:01]} Qd7 {[%clk 00:08:16]} {[%emt 00:00:31]} 27. Bc4
{[%clk 00:06:12]} {[%emt 00:01:48]} Nd6 {[%clk 00:08:45]} {[%emt 00:00:01]} 28.
Bb3 {[%clk 00:06:13]} {[%emt 00:00:30]} Ne4 {[%clk 00:09:13]} {[%emt 00:00:01]}
29. d6+ {[%clk 00:05:43]} {[%emt 00:01:00]} Rf7 {[%clk 00:09:41]} {[%emt
00:00:01]} 30. Bxf7+ {[%clk 00:05:31]} {[%emt 00:00:43]} Kxf7 {[%clk 00:09:50]}
{[%emt 00:00:32]} 31. Qf4 {[%clk 00:05:18]} {[%emt 00:00:32]} Nxd6 {[%clk
00:09:14]} {[%emt 00:01:06]} 32. Qe5 {[%clk 00:04:56]} {[%emt 00:00:52]} Ne4
{[%clk 00:09:25]} {[%emt 00:00:19]} 33. Qg7+ {[%clk 00:05:05]} {[%emt
00:00:21]} Ke8 {[%clk 00:09:26]} {[%emt 00:00:28]} 34. Qg8+ {[%clk 00:05:10]}
{[%emt 00:00:26]} Ke7 {[%clk 00:09:28]} {[%emt 00:00:28]} 35. Qxh7+ {[%clk
00:05:21]} {[%emt 00:00:19]} Kd8 {[%clk 00:09:39]} {[%emt 00:00:19]} 36. Ba5+
{[%clk 00:05:33]} {[%emt 00:00:18]} Ke8 {[%clk 00:09:49]} {[%emt 00:00:19]} 37.
Qxg6+ {[%clk 00:05:32]} {[%emt 00:00:31]} Kf8 {[%clk 00:10:08]} {[%emt
00:00:11]} 38. Qh6+ {[%clk 00:05:29]} {[%emt 00:00:34]} Kg8 {[%clk 00:10:25]}
{[%emt 00:00:12]} 39. Qg6+ {[%clk 00:05:07]} {[%emt 00:00:53]} Kf8 {[%clk
00:10:44]} {[%emt 00:00:11]} 40. Bc3 {[%clk 00:04:44]} {[%emt 00:00:53]} Qd5
{[%clk 00:10:03]} {[%emt 00:01:11]} 41. Qg7+ {[%clk 00:04:01]} {[%emt
00:01:13]} Ke8 {[%clk 00:10:30]} {[%emt 00:00:03]} 42. Qe5+ {[%clk 00:03:35]}
{[%emt 00:00:56]} Kf7 {[%clk 00:10:23]} {[%emt 00:00:36]} 43. Qxd5+ {[%clk
00:01:32]} {[%emt 00:02:34]} Bxd5 {[%clk 00:10:49]} {[%emt 00:00:04]} 44. a3
{[%clk 00:00:38]} {[%emt 00:01:24]} Kg6 {[%clk 00:09:46]} {[%emt 00:01:33]} 45.
Rd1 {[%clk 00:29:09]} {[%emt 00:01:58]} Bc6 {[%clk 00:39:44]} {[%emt 00:00:33]}
46. Rd8 {[%clk 00:28:53]} {[%emt 00:00:46]} a6 {[%clk 00:40:01]} {[%emt
00:00:13]} 47. Rc8 {[%clk 00:28:35]} {[%emt 00:00:48]} Bb5 {[%clk 00:39:57]}
{[%emt 00:00:33]} 48. g3 {[%clk 00:28:19]} {[%emt 00:00:47]} Be2 {[%clk
00:39:59]} {[%emt 00:00:28]} 49. Kg2 {[%clk 00:27:58]} {[%emt 00:00:50]} Kf7
{[%clk 00:39:48]} {[%emt 00:00:41]} 50. Be1 {[%clk 00:25:25]} {[%emt 00:03:03]}
Ke6 {[%clk 00:39:59]} {[%emt 00:00:20]} 51. Bf2 {[%clk 00:24:55]} {[%emt
00:01:00]} Kd5 {[%clk 00:40:14]} {[%emt 00:00:15]} 52. Rf8 {[%clk 00:23:38]}
{[%emt 00:01:47]} Ke5 {[%clk 00:39:32]} {[%emt 00:01:12]} 53. Be3 {[%clk
00:22:22]} {[%emt 00:01:46]} Bg4 {[%clk 00:39:11]} {[%emt 00:00:51]} 54. Kf1
{[%clk 00:20:36]} {[%emt 00:02:15]} c4 {[%clk 00:38:34]} {[%emt 00:01:08]} 55.
Ra8 {[%clk 00:20:05]} {[%emt 00:01:00]} c3 {[%clk 00:38:54]} {[%emt 00:00:11]}
56. bxc3 {[%clk 00:19:55]} {[%emt 00:00:40]} Nxc3 {[%clk 00:39:14]} {[%emt
00:00:10]} 57. Ke1 {[%clk 00:18:56]} {[%emt 00:01:28]} Ke4 {[%clk 00:38:43]}
{[%emt 00:01:02]} 58. Bf4 {[%clk 00:15:53]} {[%emt 00:03:34]} 1-0

[Event "NJSK 2026 Jeugd A"]
[Site "Helmond, Netherlands"]
[Date "2026.04.27"]
[Round "3.9"]
[White "Garay, Enzo"]
[Black "Xu, Alex Z"]
[Result "0-1"]
[TimeControl "90min/40moves + 30min + 30sec/move"]
[WhiteTitle "-"]
[BlackTitle "-"]
[WhiteFideId "40104125"]
[BlackFideId "40114775"]
[WhiteElo "2098"]
[BlackElo "1965"]

1. e4 {[%clk 01:30:58]} {[%emt 00:00:01]} c5 {[%clk 01:30:57]} {[%emt
00:00:04]} 2. Nf3 {[%clk 01:31:26]} {[%emt 00:00:02]} e6 {[%clk 01:31:22]}
{[%emt 00:00:05]} 3. d4 {[%clk 01:31:41]} {[%emt 00:00:15]} cxd4 {[%clk
01:31:48]} {[%emt 00:00:04]} 4. Nxd4 {[%clk 01:32:08]} {[%emt 00:00:02]} Nf6
{[%clk 01:32:12]} {[%emt 00:00:06]} 5. Nc3 {[%clk 01:32:35]} {[%emt 00:00:03]}
Nc6 {[%clk 01:32:38]} {[%emt 00:00:04]} 6. Bf4 {[%clk 01:32:09]} {[%emt
00:00:56]} Bb4 {[%clk 01:32:35]} {[%emt 00:00:33]} 7. Ndb5 {[%clk 01:31:41]}
{[%emt 00:00:58]} Nxe4 {[%clk 01:30:47]} {[%emt 00:02:18]} 8. Qf3 {[%clk
01:31:47]} {[%emt 00:00:23]} d5 {[%clk 01:31:12]} {[%emt 00:00:06]} 9. O-O-O
{[%clk 01:25:46]} {[%emt 00:06:31]} Nxc3 {[%clk 01:13:47]} {[%emt 00:17:53]} 10.
bxc3 {[%clk 01:23:49]} {[%emt 00:02:29]} Ba5 {[%clk 01:13:56]} {[%emt
00:00:21]} 11. Nd6+ {[%clk 00:55:36]} {[%emt 00:28:44]} Kf8 {[%clk 01:13:08]}
{[%emt 00:01:15]} 12. c4 {[%clk 00:54:40]} {[%emt 00:01:29]} Qf6 {[%clk
01:07:12]} {[%emt 00:06:26]} 13. Kb1 {[%clk 00:46:21]} {[%emt 00:08:49]} e5
{[%clk 00:58:46]} {[%emt 00:08:56]} 14. Nxc8 {[%clk 00:41:50]} {[%emt
00:05:00]} Rxc8 {[%clk 00:39:28]} {[%emt 00:19:48]} 15. cxd5 {[%clk 00:37:42]}
{[%emt 00:04:38]} Qxf4 {[%clk 00:27:53]} {[%emt 00:12:05]} 16. Qxf4 {[%clk
00:36:36]} {[%emt 00:01:36]} exf4 {[%clk 00:28:21]} {[%emt 00:00:02]} 17. dxc6
{[%clk 00:36:48]} {[%emt 00:00:18]} Rxc6 {[%clk 00:26:52]} {[%emt 00:01:59]} 18.
Rd4 {[%clk 00:35:10]} {[%emt 00:02:06]} Bc7 {[%clk 00:23:17]} {[%emt 00:04:06]}
19. Bc4 {[%clk 00:34:38]} {[%emt 00:01:02]} g5 {[%clk 00:17:08]} {[%emt
00:06:40]} 20. Bb3 {[%clk 00:33:25]} {[%emt 00:01:44]} Rd6 {[%clk 00:12:19]}
{[%emt 00:05:18]} 21. Re4 {[%clk 00:31:01]} {[%emt 00:02:54]} Rd2 {[%clk
00:10:42]} {[%emt 00:02:06]} 22. Rhe1 {[%clk 00:30:47]} {[%emt 00:00:45]} Bd6
{[%clk 00:10:30]} {[%emt 00:00:42]} 23. a4 {[%clk 00:26:22]} {[%emt 00:04:55]}
Kg7 {[%clk 00:08:54]} {[%emt 00:02:06]} 24. R1e2 {[%clk 00:26:31]} {[%emt
00:00:21]} Rxe2 {[%clk 00:08:54]} {[%emt 00:00:31]} 25. Rxe2 {[%clk 00:26:57]}
{[%emt 00:00:04]} f3 {[%clk 00:09:08]} {[%emt 00:00:15]} 26. gxf3 {[%clk
00:27:17]} {[%emt 00:00:10]} Bxh2 {[%clk 00:08:52]} {[%emt 00:00:45]} 27. Re7
{[%clk 00:27:41]} {[%emt 00:00:06]} Bf4 {[%clk 00:08:10]} {[%emt 00:01:13]} 28.
Bxf7 {[%clk 00:27:11]} {[%emt 00:00:59]} Kf6 {[%clk 00:07:42]} {[%emt
00:00:58]} 29. Re8 {[%clk 00:26:55]} {[%emt 00:00:46]} Rxe8 {[%clk 00:07:36]}
{[%emt 00:00:36]} 30. Bxe8 {[%clk 00:27:18]} {[%emt 00:00:06]} Bd6 {[%clk
00:07:49]} {[%emt 00:00:18]} 31. Kc1 {[%clk 00:26:53]} {[%emt 00:00:55]} Bc5
{[%clk 00:08:05]} {[%emt 00:00:14]} 32. Kd2 {[%clk 00:26:49]} {[%emt 00:00:33]}
Bxf2 {[%clk 00:08:28]} {[%emt 00:00:07]} 33. Ke2 {[%clk 00:26:58]} {[%emt
00:00:21]} Bc5 {[%clk 00:08:49]} {[%emt 00:00:09]} 34. Kf1 {[%clk 00:24:02]}
{[%emt 00:03:26]} Ke5 {[%clk 00:08:36]} {[%emt 00:00:43]} 35. Bf7 {[%clk
00:24:12]} {[%emt 00:00:20]} Kd4 {[%clk 00:08:39]} {[%emt 00:00:26]} 36. Ke2
{[%clk 00:23:08]} {[%emt 00:01:35]} Kc3 {[%clk 00:08:14]} {[%emt 00:00:56]} 37.
Kd1 {[%clk 00:22:20]} {[%emt 00:01:18]} Kb4 {[%clk 00:08:04]} {[%emt 00:00:41]}
38. Be8 {[%clk 00:22:45]} {[%emt 00:00:04]} a6 {[%clk 00:07:58]} {[%emt
00:00:36]} 39. Kd2 {[%clk 00:21:49]} {[%emt 00:01:25]} b5 {[%clk 00:07:49]}
{[%emt 00:00:40]} 40. axb5 {[%clk 00:21:42]} {[%emt 00:00:36]} a5 {[%clk
00:07:35]} {[%emt 00:00:44]} 41. c3+ {[%clk 00:13:28]} {[%emt 00:08:44]} Kb3
{[%clk 00:07:33]} {[%emt 00:00:32]} 42. Bf7+ {[%clk 00:13:37]} {[%emt
00:00:21]} Kb2 {[%clk 00:07:46]} {[%emt 00:00:18]} 43. Kd3 {[%clk 00:13:52]}
{[%emt 00:00:15]} a4 {[%clk 00:06:24]} {[%emt 00:01:52]} 44. Kc4 {[%clk
00:14:09]} {[%emt 00:00:13]} Bb6 {[%clk 00:06:29]} {[%emt 00:00:25]} 45. Kd5
{[%clk 00:12:26]} {[%emt 00:02:13]} Kxc3 {[%clk 00:05:06]} {[%emt 00:01:52]} 46.
Kc6 {[%clk 00:12:48]} {[%emt 00:00:09]} Be3 {[%clk 00:05:16]} {[%emt 00:00:20]}
47. b6 {[%clk 00:13:12]} {[%emt 00:00:06]} a3 {[%clk 00:05:35]} {[%emt
00:00:11]} 48. b7 {[%clk 00:13:16]} {[%emt 00:00:26]} Bf4 {[%clk 00:06:01]}
{[%emt 00:00:04]} 0-1

[Event "NJSK 2026 Jeugd A"]
[Site "Helmond, Netherlands"]
[Date "2026.04.28"]
[Round "4.1"]
[White "Ritzerveld, Noah"]
[Black "Ten Dam, Bram"]
[Result "1-0"]
[TimeControl "90min/40moves + 30min + 30sec/move"]
[WhiteTitle "-"]
[BlackTitle "-"]
[WhiteFideId "1085760"]
[BlackFideId "40104877"]
[WhiteElo "2205"]
[BlackElo "2363"]

1. e4 {[%clk 01:30:56]} {[%emt 00:00:05]} c6 {[%clk 01:30:50]} {[%emt
00:00:08]} 2. d4 {[%clk 01:31:22]} {[%emt 00:00:06]} d5 {[%clk 01:31:16]}
{[%emt 00:00:04]} 3. e5 {[%clk 01:31:36]} {[%emt 00:00:16]} c5 {[%clk
01:31:42]} {[%emt 00:00:04]} 4. Nf3 {[%clk 01:31:25]} {[%emt 00:00:40]} cxd4
{[%clk 01:31:59]} {[%emt 00:00:14]} 5. Qxd4 {[%clk 01:31:49]} {[%emt 00:00:06]}
Nc6 {[%clk 01:32:25]} {[%emt 00:00:04]} 6. Qf4 {[%clk 01:32:14]} {[%emt
00:00:04]} e6 {[%clk 01:32:51]} {[%emt 00:00:05]} 7. Nc3 {[%clk 01:32:24]}
{[%emt 00:00:19]} Bd7 {[%clk 01:33:06]} {[%emt 00:00:16]} 8. Bd3 {[%clk
01:21:51]} {[%emt 00:11:02]} Nb4 {[%clk 01:33:26]} {[%emt 00:00:10]} 9. O-O
{[%clk 01:20:52]} {[%emt 00:01:29]} Nxd3 {[%clk 01:33:41]} {[%emt 00:00:16]} 10.
cxd3 {[%clk 01:21:16]} {[%emt 00:00:06]} Ne7 {[%clk 01:34:05]} {[%emt
00:00:06]} 11. Ne2 {[%clk 01:16:45]} {[%emt 00:05:00]} Ng6 {[%clk 01:33:48]}
{[%emt 00:00:48]} 12. Qg3 {[%clk 01:15:34]} {[%emt 00:01:40]} Be7 {[%clk
01:34:14]} {[%emt 00:00:04]} 13. Nf4 {[%clk 01:04:43]} {[%emt 00:11:21]} O-O
{[%clk 01:34:38]} {[%emt 00:00:07]} 14. Nxg6 {[%clk 01:03:37]} {[%emt
00:01:36]} fxg6 {[%clk 01:35:05]} {[%emt 00:00:03]} 15. Be3 {[%clk 01:00:11]}
{[%emt 00:03:56]} Rc8 {[%clk 01:32:29]} {[%emt 00:03:06]} 16. Rfc1 {[%clk
00:52:43]} {[%emt 00:07:57]} Qa5 {[%clk 01:30:20]} {[%emt 00:02:39]} 17. h4
{[%clk 00:41:50]} {[%emt 00:11:23]} Qb4 {[%clk 01:22:44]} {[%emt 00:08:06]} 18.
b3 {[%clk 00:29:16]} {[%emt 00:13:05]} a5 {[%clk 01:15:56]} {[%emt 00:07:18]}
19. Bg5 {[%clk 00:28:24]} {[%emt 00:01:21]} Bc5 {[%clk 01:13:51]} {[%emt
00:02:36]} 20. Be3 {[%clk 00:21:07]} {[%emt 00:07:48]} Bxe3 {[%clk 01:10:54]}
{[%emt 00:03:26]} 21. fxe3 {[%clk 00:21:33]} {[%emt 00:00:04]} Rc3 {[%clk
01:10:52]} {[%emt 00:00:32]} 22. Rxc3 {[%clk 00:18:12]} {[%emt 00:03:51]} Qxc3
{[%clk 01:11:17]} {[%emt 00:00:05]} 23. Rd1 {[%clk 00:18:23]} {[%emt 00:00:18]}
Qb2 {[%clk 00:55:05]} {[%emt 00:16:42]} 24. Qf2 {[%clk 00:16:31]} {[%emt
00:02:25]} Qa3 {[%clk 00:55:01]} {[%emt 00:00:33]} 25. Qd2 {[%clk 00:16:09]}
{[%emt 00:00:52]} Rc8 {[%clk 00:52:21]} {[%emt 00:03:11]} 26. Rf1 {[%clk
00:14:49]} {[%emt 00:01:50]} h6 {[%clk 00:50:45]} {[%emt 00:02:06]} 27. Nd4
{[%clk 00:14:42]} {[%emt 00:00:37]} b6 {[%clk 00:50:15]} {[%emt 00:01:00]} 28.
Qf2 {[%clk 00:11:02]} {[%emt 00:04:09]} Qe7 {[%clk 00:50:26]} {[%emt 00:00:20]}
29. Qg3 {[%clk 00:10:26]} {[%emt 00:01:07]} Qe8 {[%clk 00:50:13]} {[%emt
00:00:42]} 30. Qf2 {[%clk 00:09:57]} {[%emt 00:00:59]} b5 {[%clk 00:49:17]}
{[%emt 00:01:26]} 31. Qd2 {[%clk 00:09:06]} {[%emt 00:01:20]} Qd8 {[%clk
00:49:38]} {[%emt 00:00:09]} 32. b4 {[%clk 00:06:41]} {[%emt 00:02:56]} Qxh4
{[%clk 00:45:37]} {[%emt 00:04:30]} 33. bxa5 {[%clk 00:07:07]} {[%emt
00:00:05]} Ra8 {[%clk 00:42:52]} {[%emt 00:03:15]} 34. Rc1 {[%clk 00:06:03]}
{[%emt 00:01:34]} Qd8 {[%clk 00:40:56]} {[%emt 00:02:26]} 35. Nb3 {[%clk
00:06:04]} {[%emt 00:00:29]} h5 {[%clk 00:33:55]} {[%emt 00:07:31]} 36. Qb4
{[%clk 00:05:57]} {[%emt 00:00:37]} Qg5 {[%clk 00:33:47]} {[%emt 00:00:37]} 37.
Qf4 {[%clk 00:05:18]} {[%emt 00:01:10]} Qe7 {[%clk 00:34:12]} {[%emt 00:00:06]}
38. Qd4 {[%clk 00:05:27]} {[%emt 00:00:20]} g5 {[%clk 00:30:57]} {[%emt
00:03:45]} 39. Qc5 {[%clk 00:03:47]} {[%emt 00:02:11]} Qd8 {[%clk 00:23:14]}
{[%emt 00:08:13]} 40. Qb6 {[%clk 00:02:43]} {[%emt 00:01:33]} Qe7 {[%clk
00:16:23]} {[%emt 00:07:21]} 41. Qd6 {[%clk 00:01:32]} {[%emt 00:01:41]} Qxd6
{[%clk 00:07:18]} {[%emt 00:09:35]} 42. exd6 {[%clk 00:01:57]} {[%emt
00:00:05]} Ra6 {[%clk 00:07:22]} {[%emt 00:00:26]} 43. Rc7 {[%clk 00:25:41]}
{[%emt 00:06:46]} Rxd6 {[%clk 00:37:27]} {[%emt 00:00:24]} 44. a6 {[%clk
00:25:20]} {[%emt 00:00:53]} Rxa6 {[%clk 00:36:39]} {[%emt 00:01:18]} 45. Rxd7
{[%clk 00:25:45]} {[%emt 00:00:04]} Rxa2 {[%clk 00:37:02]} {[%emt 00:00:07]} 46.
Nc5 {[%clk 00:22:32]} {[%emt 00:03:43]} b4 {[%clk 00:30:48]} {[%emt 00:06:44]}
47. Nxe6 {[%clk 00:22:43]} {[%emt 00:00:19]} b3 {[%clk 00:31:15]} {[%emt
00:00:03]} 48. Rxg7+ {[%clk 00:23:07]} {[%emt 00:00:06]} Kh8 {[%clk 00:31:41]}
{[%emt 00:00:03]} 49. Rb7 {[%clk 00:23:33]} {[%emt 00:00:05]} b2 {[%clk
00:32:06]} {[%emt 00:00:05]} 50. Kh2 {[%clk 00:24:01]} {[%emt 00:00:02]} g4
{[%clk 00:32:31]} {[%emt 00:00:04]} 51. Kg3 {[%clk 00:23:34]} {[%emt 00:00:56]}
b1=Q {[%clk 00:32:13]} {[%emt 00:00:49]} 52. Rxb1 {[%clk 00:23:56]} {[%emt
00:00:08]} Re2 {[%clk 00:32:40]} {[%emt 00:00:03]} 53. Kf4 {[%clk 00:22:53]}
{[%emt 00:01:33]} Rxg2 {[%clk 00:33:03]} {[%emt 00:00:07]} 54. Kg5 {[%clk
00:21:55]} {[%emt 00:01:28]} Re2 {[%clk 00:32:46]} {[%emt 00:00:47]} 55. Kg6
{[%clk 00:22:18]} {[%emt 00:00:07]} 1-0